[Event "Turkish Cup 2022"]
[Site "Sakarya"]
[Date "2022.03.29"]
[Round "7.42"]
[White "Gok, Emre"]
[Black "Celik, Ege Yigit"]
[Result "1/2-1/2"]
[ECO "A48"]
[WhiteElo "1745"]
[BlackElo "1466"]
[Annotator "COMBH"]
[PlyCount "158"]
[EventDate "2022.03.25"]
[EventType "swiss"]
[EventCountry "TUR"]
[SourceTitle "playchess.com"]
[Source "ChessBase"]
[SourceQuality "1"]
[TimeControl "5400+30"]

1. b3 Nf6 2. Bb2 g6 3. Nf3 Bg7 4. d4 {[%emt 0:05:30]} O-O {[%emt 0:01:30]} 5. e3 {[%emt 0:00:30]} d6 {[%emt 0:00:30]} 6. Bd3 {[%emt 0:00:30]} Nc6 {[%emt 0:02:30]} 7. O-O {[%emt 0:00:30]} e5 {[%emt 0:01:30]} 8. dxe5 {[%emt 0:00:30]} Ng4 {[%emt 0:00:30]} 9. Nc3 {[%emt 0:02:30]} Ngxe5 {[%emt 0:01:30]} 10. Be2 {[%emt 0:00:30]} Re8 {[%emt 0:02:30]} 11. Nd4 {[%emt 0:01:30]} Nxd4 {[%emt 0:05:30]} 12. exd4 {[%emt 0:00:30]} Nc6 {[%emt 0:01:30]} 13. d5 {[%emt 0:05:30]} Nd4 {[%emt 0:02:30]} 14. Bd3 {[%emt 0:01:30]} Bf5 {[%emt 0:01:30]} 15. Bxf5 {[%emt 0:07:30]} Nxf5 {[%emt 0:00:30]} 16. Qd3 {[%emt 0:00:30]} Qe7 {[%emt 0:04:30]} 17. Rad1 {[%emt 0:04:30]} a6 {[%emt 0:08:30]} 18. Na4 {[%emt 0:08:30]} b5 {[%emt 0:10:30]} 19. Bxg7 {[%emt 0:04:30]} Kxg7 {[%emt 0:01:30]} 20. Nc3 {[%emt 0:01:30]} b4 {[%emt 0:04:30]} 21. Nb1 {[%emt 0:06:30]} Qe2 {[%emt 0:04:30]} 22. Rd2 {[%emt 0:03:30]} Qe5 {[%emt 0:05:30]} 23. c3 {[%emt 0:10:30]} Rab8 {[%emt 0:07:30]} 24. cxb4 {[%emt 0:07:30]} Rxb4 {[%emt 0:02:30]} 25. Qc3 {[%emt 0:04:30]} Rd4 {[%emt 0:01:30]} 26. Qxc7 {[%emt 0:04:30]} Qxd5 {[%emt 0:09:30]} 27. Nc3 {[%emt 0:02:51]} Qe6 {[%emt 0:05:43]} 28. Rxd4 {[%emt 0:03:04]} Nxd4 {[%emt 0:00:30]} 29. Qa7 {[%emt 0:04:20]} Nb5 {[%emt 0:02:49]} 30. Nxb5 {[%emt 0:00:30]} axb5 {[%emt 0:00:30]} 31. g3 {[%emt 0:00:30]} Qd5 {[%emt 0:00:30]} 32. Qa5 {[%emt 0:01:32]} h5 {[%emt 0:07:02]} 33. Qc3+ {[%emt 0:00:17]} Kg8 {[%emt 0:00:18]} 34. h4 {[%emt 0:00:58]} Re4 {[%emt 0:00:22]} 35. Rc1 {[%emt 0:01:51]} b4 {[%emt 0:00:15]} 36. Qf6 {[%emt 0:00:21]} Qe6 {[%emt 0:02:04]} 37. Qd8+ {[%emt 0:05:00]} Qe8 {[%emt 0:04:49]} 38. Rc8 {[%emt 0:00:18]} Qxd8 {[%emt 0:00:47]} 39. Rxd8+ {[%emt 0:00:30]} Kg7 {[%emt 0:00:30]} 40. Rxd6 {[%emt 0:00:30]} Re2 {[%emt 0:00:30]} 41. Rd4 {[%emt 0:00:30]} Rxa2 {[%emt 0:00:30]} 42. Rxb4 {[%emt 0:00:30]} Rb2 {[%emt 0:00:30]} 43. Rb6 {[%emt 0:00:00]} Kf8 {[%emt 0:00:00]} 44. Kg2 {[%emt 0:00:00]} Ke7 {[%emt 0:00:00]} 45. Kf3 {[%emt 0:00:00]} Kd7 {[%emt 0:00:00]} 46. Ke3 {[%emt 0:00:16]} Kc7 {[%emt 0:00:07]} 47. Rb4 {[%emt 0:00:00]} Kc6 {[%emt 0:00:30]} 48. f3 {[%emt 0:00:00]} Kd6 {[%emt 0:02:15]} 49. Kf4 {[%emt 0:00:12]} Ke6 {[%emt 0:00:30]} 50. Rb6+ {[%emt 0:00:30]} Ke7 {[%emt 0:00:21]} 51. Rb7+ {[%emt 0:00:03]} Kf6 {[%emt 0:00:30]} 52. b4 {[%emt 0:01:30]} Rb1 {[%emt 0:01:21]} 53. Rb6+ {[%emt 0:00:30]} Ke7 {[%emt 0:00:30]} 54. Kg5 {[%emt 0:00:30]} Rb3 {[%emt 0:00:16]} 55. Kf4 {[%emt 0:01:11]} Rb1 {[%emt 0:00:30]} 56. Rb8 {[%emt 0:00:30]} Kf6 {[%emt 0:00:30]} 57. g4 {[%emt 0:00:30]} hxg4 {[%emt 0:00:30]} 58. fxg4 {[%emt 0:00:30]} Rf1+ {[%emt 0:00:30]} 59. Kg3 {[%emt 0:00:30]} Rb1 {[%emt 0:00:30]} 60. Rb6+ {[%emt 0:01:24]} Kg7 {[%emt 0:00:59]} 61. h5 {[%emt 0:01:44]} Rg1+ {[%emt 0:00:24]} 62. Kh4 {[%emt 0:02:04]} Rh1+ {[%emt 0:00:28]} 63. Kg5 {[%emt 0:00:00]} gxh5 {[%emt 0:00:30]} 64. gxh5 {[%emt 0:00:29]} Rg1+ {[%emt 0:00:30]} 65. Kf5 {[%emt 0:00:30]} Rf1+ {[%emt 0:00:30]} 66. Ke5 {[%emt 0:00:30]} f5 {[%emt 0:00:30]} 67. h6+ {[%emt 0:00:00]} Kh7 {[%emt 0:00:44]} 68. b5 {[%emt 0:00:00]} f4 {[%emt 0:00:33]} 69. Ke4 {[%emt 0:00:05]} Rf2 {[%emt 0:00:05]} 70. Rf6 {[%emt 0:00:47]} Rb2 {[%emt 0:00:30]} 71. b6 {[%emt 0:00:18]} Rb4+ {[%emt 0:00:45]} 72. Kf3 {[%emt 0:00:02]} Kh8 {[%emt 0:00:29]} 73. Kg4 {[%emt 0:02:35]} Kh7 {[%emt 0:00:16]} 74. Kg5 {[%emt 0:01:52]} f3 {[%emt 0:00:13]} 75. Rf7+ {[%emt 0:00:29]} Kg8 {[%emt 0:00:35]} 76. h7+ {[%emt 0:00:30]} Kh8 {[%emt 0:00:00]} 77. b7 {[%emt 0:01:17]} f2 {[%emt 0:00:45]} 78. Kg6 {[%emt 0:00:30]} Rb6+ {[%emt 0:00:30]} 79. Kg5 {[%emt 0:00:10]} Rxb7 {[%emt 0:00:00]} 1/2-1/2

[Event "Turkish Cup 2022"]
[Site "Sakarya"]
[Date "2022.03.29"]
[Round "7.45"]
[White "Gursu, Sungur"]
[Black "Basaran, Cahit"]
[Result "1-0"]
[ECO "C21"]
[WhiteElo "1562"]
[BlackElo "1782"]
[Annotator "NA"]
[PlyCount "131"]
[EventDate "2022.03.25"]
[EventType "swiss"]
[EventCountry "TUR"]
[SourceTitle "playchess.com"]
[Source "ChessBase"]
[SourceQuality "1"]
[TimeControl "5400+30"]

1. e4 e5 2. d4 exd4 3. c3 dxc3 4. Bc4 d6 5. Nxc3 {[%emt 0:04:00]} Nf6 {[%emt 0:04:00]} 6. Qb3 {[%emt 0:02:30]} Qe7 {[%emt 0:01:30]} 7. Bg5 {[%emt 0:06:30]} c6 {[%emt 0:00:30]} 8. O-O-O {[%emt 0:04:30]} Nbd7 {[%emt 0:04:30]} 9. Nf3 {[%emt 0:04:30]} Nc5 {[%emt 0:02:30]} 10. Qc2 {[%emt 0:01:30]} Be6 {[%emt 0:01:30]} 11. Bxe6 {[%emt 0:01:30]} Qxe6 {[%emt 0:00:30]} 12. Rhe1 {[%emt 0:01:30]} Ncd7 {[%emt 0:01:30]} 13. Nd5 {[%emt 0:07:30]} O-O-O {[%emt 0:03:30]} 14. Kb1 {[%emt 0:01:30]} Kb8 {[%emt 0:17:30]} 15. Nf4 {[%emt 0:00:30]} Qe8 {[%emt 0:00:30]} 16. Nd3 {[%emt 0:12:30]} h6 {[%emt 0:01:30]} 17. e5 {[%emt 0:09:30]} dxe5 {[%emt 0:05:30]} 18. Ndxe5 {[%emt 0:00:30]} Nxe5 {[%emt 0:12:30]} 19. Rxe5 {[%emt 0:18:30]} Rxd1+ {[%emt 0:10:30]} 20. Qxd1 {[%emt 0:00:00]} Be7 {[%emt 0:00:30]} 21. Bf4 {[%emt 0:04:00]} Kc8 {[%emt 0:01:30]} 22. Qe1 {[%emt 0:04:27]} Nd5 {[%emt 0:00:30]} 23. Rxd5 {[%emt 0:00:30]} cxd5 {[%emt 0:00:30]} 24. Qe5 {[%emt 0:00:30]} Qd8 {[%emt 0:06:30]} 25. Qb8+ {[%emt 0:03:31]} Kd7 {[%emt 0:00:30]} 26. Qxb7+ {[%emt 0:00:09]} Ke8 {[%emt 0:00:00]} 27. Qxa7 {[%emt 0:00:49]} Qd7 {[%emt 0:03:00]} 28. Qb8+ {[%emt 0:00:39]} Bd8 {[%emt 0:00:30]} 29. Qe5+ {[%emt 0:01:21]} Kf8 {[%emt 0:00:30]} 30. Qd6+ {[%emt 0:03:09]} Qxd6 {[%emt 0:00:30]} 31. Bxd6+ {[%emt 0:00:30]} Ke8 {[%emt 0:00:30]} 32. Bc5 {[%emt 0:00:30]} Bf6 {[%emt 0:00:30]} 33. b4 {[%emt 0:00:30]} Kd7 {[%emt 0:00:30]} 34. a4 {[%emt 0:00:30]} Be7 {[%emt 0:00:30]} 35. Bxe7 {[%emt 0:00:30]} Kxe7 {[%emt 0:02:30]} 36. Kc2 {[%emt 0:00:00]} Kd6 {[%emt 0:00:00]} 37. Kb3 {[%emt 0:00:14]} Re8 {[%emt 0:00:00]} 38. Nd4 {[%emt 0:00:30]} Re1 {[%emt 0:00:30]} 39. a5 {[%emt 0:00:30]} g6 {[%emt 0:00:30]} 40. Nb5+ {[%emt 0:00:30]} Kc6 {[%emt 0:00:30]} 41. Nd4+ {[%emt 0:03:40]} Kb7 {[%emt 0:01:30]} 42. b5 {[%emt 0:01:09]} Rc1 {[%emt 0:01:30]} 43. Nc6 {[%emt 0:01:25]} Rg1 {[%emt 0:01:31]} 44. Kb4 {[%emt 0:01:22]} Rxg2 {[%emt 0:00:12]} 45. Kc5 {[%emt 0:00:45]} Rxf2 {[%emt 0:00:42]} 46. a6+ {[%emt 0:00:13]} Ka8 {[%emt 0:01:05]} 47. b6 {[%emt 0:01:16]} Rb2 {[%emt 0:00:40]} 48. b7+ {[%emt 0:01:36]} Rxb7 {[%emt 0:00:30]} 49. axb7+ {[%emt 0:00:00]} Kxb7 {[%emt 0:00:00]} 50. Kxd5 {[%emt 0:00:00]} g5 {[%emt 0:02:11]} 51. Nd8+ {[%emt 0:00:20]} Kc7 {[%emt 0:02:00]} 52. Nxf7 {[%emt 0:00:30]} Kd7 {[%emt 0:00:26]} 53. Nxh6 {[%emt 0:00:47]} Ke7 {[%emt 0:00:30]} 54. Ke5 {[%emt 0:00:30]} Kf8 {[%emt 0:00:30]} 55. Kf6 {[%emt 0:00:30]} g4 {[%emt 0:00:30]} 56. Nxg4 {[%emt 0:00:30]} Kg8 {[%emt 0:00:30]} 57. Kg6 {[%emt 0:00:30]} Kh8 {[%emt 0:00:30]} 58. h4 {[%emt 0:00:30]} Kg8 {[%emt 0:00:00]} 59. h5 {[%emt 0:00:00]} Kh8 {[%emt 0:00:00]} 60. Ne5 {[%emt 0:00:00]} Kg8 {[%emt 0:00:00]} 61. h6 {[%emt 0:00:00]} Kh8 {[%emt 0:00:00]} 62. Nf7+ {[%emt 0:00:09]} Kg8 {[%emt 0:00:26]} 63. h7+ {[%emt 0:00:30]} Kf8 {[%emt 0:00:30]} 64. h8=Q+ {[%emt 0:00:30]} Ke7 {[%emt 0:00:30]} 65. Qd8+ {[%emt 0:00:00]} Ke6 {[%emt 0:00:00]} 66. Qd6# {[%emt 0:00:00]} 1-0

[Event "Turkish Cup 2022"]
[Site "Sakarya"]
[Date "2022.03.29"]
[Round "7.46"]
[White "Vursan, Emre Can"]
[Black "Topuz, Mirac Melih"]
[Result "1-0"]
[ECO "A03"]
[WhiteElo "1741"]
[BlackElo "1515"]
[Annotator "NA"]
[PlyCount "121"]
[EventDate "2022.03.25"]
[EventType "swiss"]
[EventCountry "TUR"]
[SourceTitle "playchess.com"]
[Source "ChessBase"]
[SourceQuality "1"]
[TimeControl "5400+30"]

1. f4 d5 2. b3 {[%emt 0:05:30]} Nf6 {[%emt 0:01:30]} 3. Nf3 {[%emt 0:00:30]} c5 {[%emt 0:00:30]} 4. e3 {[%emt 0:00:30]} Nc6 {[%emt 0:00:30]} 5. Bb5 {[%emt 0:00:30]} Bg4 {[%emt 0:00:30]} 6. Bxc6+ {[%emt 0:00:30]} bxc6 {[%emt 0:00:30]} 7. Bb2 {[%emt 0:00:30]} e6 {[%emt 0:00:00]} 8. O-O {[%emt 0:00:00]} Be7 {[%emt 0:01:00]} 9. d3 {[%emt 0:00:00]} O-O {[%emt 0:00:30]} 10. Qe1 {[%emt 0:00:00]} Bxf3 {[%emt 0:02:30]} 11. Rxf3 {[%emt 0:00:00]} d4 {[%emt 0:00:30]} 12. Nd2 {[%emt 0:00:30]} Ng4 {[%emt 0:09:30]} 13. Nc4 {[%emt 0:01:30]} Bf6 {[%emt 0:00:30]} 14. e4 {[%emt 0:01:30]} h5 {[%emt 0:11:30]} 15. h3 {[%emt 0:06:30]} Nh6 {[%emt 0:02:30]} 16. Qa5 {[%emt 0:20:30]} Be7 {[%emt 0:02:30]} 17. Re1 {[%emt 0:21:30]} f6 {[%emt 0:07:30]} 18. Qd2 {[%emt 0:04:30]} Qe8 {[%emt 0:03:30]} 19. Qe2 {[%emt 0:05:30]} Rc8 {[%emt 0:07:30]} 20. f5 {[%emt 0:03:30]} Nf7 {[%emt 0:07:30]} 21. Rg3 {[%emt 0:02:30]} Ne5 {[%emt 0:00:30]} 22. Nxe5 {[%emt 0:04:30]} fxe5 {[%emt 0:00:30]} 23. Rg6 {[%emt 0:00:30]} exf5 {[%emt 0:04:30]} 24. Qxh5 {[%emt 0:00:00]} f4 {[%emt 0:01:30]} 25. Qg4 {[%emt 0:02:00]} Qf7 {[%emt 0:05:30]} 26. Re6 {[%emt 0:01:01]} Bf6 {[%emt 0:16:42]} 27. Ba3 {[%emt 0:00:30]} f3 {[%emt 0:02:30]} 28. gxf3 {[%emt 0:00:48]} Rfe8 {[%emt 0:00:30]} 29. Rxe8+ {[%emt 0:00:30]} Rxe8 {[%emt 0:00:30]} 30. Bxc5 {[%emt 0:00:30]} Re6 {[%emt 0:00:30]} 31. Kh2 {[%emt 0:02:30]} Bd8 {[%emt 0:02:40]} 32. Rg1 {[%emt 0:00:30]} Rf6 {[%emt 0:00:30]} 33. Rg3 {[%emt 0:00:30]} Rf4 {[%emt 0:03:27]} 34. Qc8 {[%emt 0:02:35]} Qf6 {[%emt 0:00:15]} 35. Kg2 {[%emt 0:05:10]} Kh7 {[%emt 0:00:02]} 36. Qd7 {[%emt 0:00:10]} Ba5 {[%emt 0:04:51]} 37. b4 {[%emt 0:00:30]} Bb6 {[%emt 0:00:00]} 38. Bd6 {[%emt 0:00:23]} Bd8 {[%emt 0:02:38]} 39. Bxe5 {[%emt 0:00:50]} Qxe5 {[%emt 0:01:24]} 40. Qxd8 {[%emt 0:00:02]} Rf6 {[%emt 0:00:29]} 41. Qd7 {[%emt 0:01:08]} Rf8 {[%emt 0:00:25]} 42. Qxa7 {[%emt 0:01:37]} Qf6 {[%emt 0:00:17]} 43. Qc5 {[%emt 0:00:00]} Ra8 {[%emt 0:00:34]} 44. Qf5+ {[%emt 0:01:47]} Qxf5 {[%emt 0:00:30]} 45. exf5 {[%emt 0:00:30]} Rxa2 {[%emt 0:00:30]} 46. Rg4 {[%emt 0:00:39]} Rxc2+ {[%emt 0:00:00]} 47. Kg3 {[%emt 0:00:30]} c5 {[%emt 0:00:26]} 48. bxc5 {[%emt 0:00:30]} Rxc5 {[%emt 0:00:30]} 49. Kf4 {[%emt 0:00:10]} Rc1 {[%emt 0:00:26]} 50. Ke4 {[%emt 0:00:17]} Kh6 {[%emt 0:01:35]} 51. Kxd4 {[%emt 0:00:30]} Rh1 {[%emt 0:00:30]} 52. Rg6+ {[%emt 0:00:30]} Kh7 {[%emt 0:00:30]} 53. Rg3 {[%emt 0:00:30]} Re1 {[%emt 0:00:30]} 54. Kd5 {[%emt 0:00:30]} Re8 {[%emt 0:00:30]} 55. d4 {[%emt 0:00:00]} Rd8+ {[%emt 0:00:00]} 56. Ke4 {[%emt 0:00:05]} Re8+ {[%emt 0:00:17]} 57. Kd3 {[%emt 0:00:30]} Rf8 {[%emt 0:00:30]} 58. Rg5 {[%emt 0:00:30]} Kh6 {[%emt 0:00:30]} 59. h4 {[%emt 0:00:30]} Rd8 {[%emt 0:00:30]} 60. Rg6+ {[%emt 0:00:30]} Kh7 {[%emt 0:00:00]} 61. Ke4 {[%emt 0:00:00]} 1-0

[Event "Turkish Cup 2022"]
[Site "Sakarya"]
[Date "2022.03.29"]
[Round "7.47"]
[White "Camdereli, Gunduz"]
[Black "Sahin, Handenur"]
[Result "0-1"]
[ECO "C92"]
[WhiteElo "1737"]
[BlackElo "1997"]
[Annotator "NA"]
[PlyCount "66"]
[EventDate "2022.03.25"]
[EventType "swiss"]
[EventCountry "TUR"]
[SourceTitle "playchess.com"]
[Source "ChessBase"]
[SourceQuality "1"]
[TimeControl "5400+30"]

1. e4 e5 2. Nf3 Nc6 3. Bb5 a6 4. Ba4 Nf6 5. O-O Be7 6. Re1 {[%emt 0:04:30]} b5 {[%emt 0:03:30]} 7. Bb3 {[%emt 0:00:30]} d6 {[%emt 0:00:30]} 8. c3 {[%emt 0:00:30]} O-O {[%emt 0:00:30]} 9. h3 {[%emt 0:00:30]} Nd7 {[%emt 0:00:30]} 10. d4 {[%emt 0:00:30]} Bf6 {[%emt 0:02:30]} 11. d5 {[%emt 0:00:30]} Ne7 {[%emt 0:01:30]} 12. a4 {[%emt 0:02:30]} Bb7 {[%emt 0:02:30]} 13. axb5 {[%emt 0:00:30]} axb5 {[%emt 0:00:30]} 14. Rxa8 {[%emt 0:00:30]} Qxa8 {[%emt 0:09:30]} 15. Na3 {[%emt 0:02:30]} Ba6 {[%emt 0:07:30]} 16. Nc2 {[%emt 0:06:30]} Nc5 {[%emt 0:03:30]} 17. Nb4 {[%emt 0:01:30]} Bb7 {[%emt 0:08:30]} 18. Bc2 {[%emt 0:07:30]} g6 {[%emt 0:07:30]} 19. Nh2 {[%emt 0:16:30]} Bg7 {[%emt 0:06:30]} 20. Ng4 {[%emt 0:09:30]} Kh8 {[%emt 0:07:30]} 21. Ne3 {[%emt 0:15:30]} Bc8 {[%emt 0:06:30]} 22. g4 {[%emt 0:14:14]} Bd7 {[%emt 0:02:30]} 23. Qf3 {[%emt 0:06:22]} Qc8 {[%emt 0:05:30]} 24. Rf1 {[%emt 0:08:10]} f5 {[%emt 0:01:30]} 25. gxf5 {[%emt 0:00:30]} gxf5 {[%emt 0:00:30]} 26. Nxf5 {[%emt 0:00:08]} Nxf5 {[%emt 0:05:49]} 27. exf5 {[%emt 0:00:17]} e4 {[%emt 0:00:18]} 28. Qe2 {[%emt 0:00:30]} Bxf5 {[%emt 0:00:30]} 29. f4 {[%emt 0:04:01]} Bxh3 {[%emt 0:02:31]} 30. Rf2 {[%emt 0:00:12]} Rg8 {[%emt 0:05:41]} 31. Kh2 {[%emt 0:00:48]} Bg4 {[%emt 0:00:38]} 32. Qf1 {[%emt 0:00:32]} Qf5 {[%emt 0:00:19]} 33. Kg1 {[%emt 0:00:43]} Bh3 {[%emt 0:01:10]} 0-1

[Event "Turkish Cup 2022"]
[Site "Sakarya"]
[Date "2022.03.30"]
[Round "8.3"]
[White "Sevgi, Volkan"]
[Black "Yavuz, Efe Metehan"]
[Result "0-1"]
[ECO "C26"]
[WhiteElo "2344"]
[BlackElo "2054"]
[Annotator "ChessBase"]
[PlyCount "120"]
[EventDate "2022.03.25"]
[EventType "swiss"]
[EventCountry "TUR"]
[SourceTitle "playchess.com"]
[Source "ChessBase"]
[SourceQuality "1"]
[TimeControl "5400+30"]

1. e4 {[%emt 0:03:00]} e5 {[%emt 0:01:00]} 2. Nc3 {[%emt 0:03:30]} Nf6 {[%emt 0:00:30]} 3. g3 {[%emt 0:00:30]} d5 {[%emt 0:00:30]} 4. exd5 {[%emt 0:00:30]} c6 {[%emt 0:00:30]} 5. d6 {[%emt 0:08:30]} Bxd6 {[%emt 0:00:30]} 6. Bg2 {[%emt 0:00:00]} O-O {[%emt 0:02:30]} 7. Nge2 {[%emt 0:00:00]} Bg4 {[%emt 0:07:30]} 8. h3 {[%emt 0:00:30]} Be6 {[%emt 0:01:30]} 9. d4 {[%emt 0:02:30]} Qc7 {[%emt 0:09:30]} 10. Bg5 {[%emt 0:02:30]} Nbd7 {[%emt 0:29:30]} 11. O-O {[%emt 0:03:30]} h6 {[%emt 0:02:30]} 12. Be3 {[%emt 0:10:30]} Nb6 {[%emt 0:02:30]} 13. Qc1 {[%emt 0:02:30]} Nfd5 {[%emt 0:05:30]} 14. dxe5 {[%emt 0:03:30]} Nxc3 {[%emt 0:02:30]} 15. Nxc3 {[%emt 0:08:30]} Bxe5 {[%emt 0:00:30]} 16. Ne4 {[%emt 0:01:30]} Nc4 {[%emt 0:01:30]} 17. c3 {[%emt 0:00:00]} Nxe3 {[%emt 0:01:30]} 18. Qxe3 {[%emt 0:00:00]} Rfe8 {[%emt 0:04:30]} 19. Nc5 {[%emt 0:05:30]} Bf5 {[%emt 0:07:15]} 20. Qf3 {[%emt 0:01:30]} Bg6 {[%emt 0:01:13]} 21. Rad1 {[%emt 0:03:30]} Re7 {[%emt 0:03:42]} 22. h4 {[%emt 0:00:30]} Rae8 {[%emt 0:06:08]} 23. h5 {[%emt 0:02:30]} Bh7 {[%emt 0:00:51]} 24. Qg4 {[%emt 0:04:30]} Qb6 {[%emt 0:03:27]} 25. Na4 {[%emt 0:03:30]} Qb5 {[%emt 0:00:30]} 26. b3 {[%emt 0:00:30]} Bf6 {[%emt 0:00:30]} 27. c4 {[%emt 0:00:30]} Qf5 {[%emt 0:01:02]} 28. Qxf5 {[%emt 0:03:30]} Bxf5 {[%emt 0:00:30]} 29. Bf3 {[%emt 0:00:30]} Bh3 {[%emt 0:00:30]} 30. Bg2 {[%emt 0:00:30]} Bg4 {[%emt 0:00:00]} 31. f3 {[%emt 0:07:52]} Bxh5 {[%emt 0:00:00]} 32. g4 {[%emt 0:00:08]} Bg6 {[%emt 0:00:00]} 33. f4 {[%emt 0:00:30]} Be4 {[%emt 0:02:23]} 34. Nc5 {[%emt 0:01:12]} Bxg2 {[%emt 0:00:30]} 35. Kxg2 {[%emt 0:00:00]} b6 {[%emt 0:00:36]} 36. Nd7 {[%emt 0:00:18]} Bc3 {[%emt 0:00:25]} 37. Rf3 {[%emt 0:01:29]} Re2+ {[%emt 0:00:16]} 38. Kf1 {[%emt 0:00:59]} Rc2 {[%emt 0:00:40]} 39. c5 {[%emt 0:02:12]} bxc5 {[%emt 0:01:23]} 40. Nxc5 {[%emt 0:01:00]} Ba5 {[%emt 0:00:03]} 41. Nd3 {[%emt 0:03:14]} Rxa2 {[%emt 0:01:30]} 42. Ne5 {[%emt 0:00:07]} Bc7 {[%emt 0:01:13]} 43. Nxc6 {[%emt 0:01:21]} Bb6 {[%emt 0:02:21]} 44. Ne5 {[%emt 0:00:17]} f6 {[%emt 0:00:01]} 45. Nc4 {[%emt 0:09:17]} Ree2 {[%emt 0:00:31]} 46. Nxb6 {[%emt 0:00:30]} axb6 {[%emt 0:00:00]} 47. Ra1 {[%emt 0:00:08]} Rab2 {[%emt 0:00:00]} 48. g5 {[%emt 0:01:49]} Rh2 {[%emt 0:00:43]} 49. Kg1 {[%emt 0:03:41]} Rbg2+ {[%emt 0:00:06]} 50. Kf1 {[%emt 0:00:00]} hxg5 {[%emt 0:00:33]} 51. fxg5 {[%emt 0:00:49]} Rxg5 {[%emt 0:00:02]} 52. Ra6 {[%emt 0:00:11]} b5 {[%emt 0:01:14]} 53. Rd6 {[%emt 0:00:24]} Rc5 {[%emt 0:00:10]} 54. Rd8+ {[%emt 0:00:54]} Kf7 {[%emt 0:00:22]} 55. Kg1 {[%emt 0:00:32]} Rb2 {[%emt 0:00:30]} 56. Rd7+ {[%emt 0:00:30]} Kf8 {[%emt 0:00:30]} 57. Rd1 {[%emt 0:00:30]} b4 {[%emt 0:00:30]} 58. Ra1 {[%emt 0:00:22]} Rc3 {[%emt 0:01:47]} 59. Ra8+ {[%emt 0:00:18]} Kf7 {[%emt 0:00:12]} 60. Ra7+ {[%emt 0:00:30]} Kg6 {[%emt 0:00:00]} 0-1